{"text_format":"1","workbook":"xlsx","n_sheets":17,"sheets":["Memoriaal","Gegevens","Rooster + maaltijden","Kilometer registratie","Was, Droog & Vaatwassen","jan","feb","maa","apr","mei","juni","juli","aug","sep","okt","nov","dec"],"not_rendered":{"charts":0,"images":4,"macros":1,"external_links":0,"defined_names":1,"comments":3,"pivot_tables":0},"unopened":[],"bounds":{"document_bytes":16777216,"sheet_cells":100000,"rows_first":2000,"rows_last":500,"rows_between":2000,"halvings":0,"cell_chars":16384,"cell_head_chars":4096},"cells_cut":0,"cells_raw":0,"read":"whole","date_system":"1900"}

{"sheet":"Memoriaal","index":0,"n_rows":7,"n_cols":5,"rows_kept":7,"cut":false,"hidden":false,"merged":[]}
[]
[null,null,null,"Memoriaal boeking",{"$f":"Gegevens!J26","v":2022}]
[null,null,null,{"$f":"Gegevens!G26","v":"test"}]
[null,null,"Grootboek rekening","Omschrijving","Bedrag"]
[null,null,44994,"Was en droogbeurten",{"$f":"'Was, Droog & Vaatwassen'!C36","v":0}]
[null,null,44991,"Maaltijden & snackjes",{"$f":"'Rooster + maaltijden'!B371","v":0}]
[null,null,42500,"Kilometer vergoeding",{"$f":"SUM(jan!E5+feb!E5+maa!E5+apr!E5+mei!E5+juni!E5+juli!E5+aug!E5+sep!E5+okt!E5+nov!E5+dec!E5)","v":0}]

{"sheet":"Gegevens","index":1,"n_rows":33,"n_cols":10,"rows_kept":33,"cut":false,"hidden":false,"merged":[[18,9,21,12],[2,2,2,3],[16,5,16,25],[2,5,2,25],[7,6,7,14],[3,2,3,3],[4,2,4,3],[5,2,5,3],[6,2,6,3],[7,2,7,3],[8,2,8,3],[9,2,9,3],[10,2,10,3],[11,2,11,3],[12,2,12,3],[13,2,13,3],[14,2,14,3],[15,2,15,3],[16,2,16,3],[17,2,17,3],[23,2,23,3],[18,2,18,3],[19,2,19,3],[20,2,20,3],[21,2,21,3],[22,2,22,3]]}
[]
[]
[null,null,"kinderen"]
[null,null,"Naam"]
[null,null,"Klaas"]
[null,null,"Kind 2"]
[null,null,"Kind 3"]
[null,null,"Kind 4",null,null,null,"Welkom bij het administratie overzicht voor gastouders van VOF Fidined. "]
[null,null,"Kind 5"]
[null,null,"Kind 6"]
[null,null,"Kind 7"]
[null,null,"kind 8"]
[null,null,"kind 9"]
[null,null,"kind 10"]
[null,null,"kind 11"]
[null,null,"kind 12"]
[null,null,"kind 13"]
[null,null,"kind 14"]
[null,null,"kind 15"]
[null,null,"kind 16"]
[null,null,"kind 17"]
[null,null,"kind 18"]
[null,null,"kind 19"]
[null,null,"Kind 20"]
[null,null,null,null,null,null,"Bedrijfsnaam","kvk","lrkp","Boekjaar"]
[null,null,"Vergoeding opties",null,null,null,"test",null,null,2022]
[null,null,"Broodmaalijd",1.21]
[null,null,"Tussen-doortje",0.87]
[null,null,"Warme maaltijd",1.78]
[null,null,"Wasbeurt",1.26]
[null,null,"Droogbeurt",1.95]
[null,null,"Vaatwasbeurt",0.51]
[null,null,"Kilometers ",0.19]

{"sheet":"Rooster + maaltijden","index":2,"n_rows":371,"n_cols":162,"rows_kept":371,"cut":false,"hidden":false,"merged":[[2,83,2,89],[2,91,2,97],[2,43,2,49],[2,51,2,57],[2,59,2,65],[2,67,2,73],[2,75,2,81],[2,35,2,41],[2,11,2,17],[2,19,2,25],[2,27,2,33],[2,3,2,9],[2,139,2,145],[2,147,2,153],[2,155,2,161],[2,99,2,105],[2,107,2,113],[2,115,2,121],[2,123,2,129],[2,131,2,137],[3,3,3,6],[3,11,3,14],[3,19,3,22],[3,27,3,30],[3,35,3,38],[3,43,3,46],[3,51,3,54],[3,59,3,62],[3,67,3,70],[3,75,3,78],[3,83,3,86],[3,91,3,94],[3,99,3,102],[3,107,3,110],[3,115,3,118],[3,123,3,126],[3,131,3,134],[3,139,3,142],[3,147,3,150],[3,155,3,158]]}
[]
[]
[null,"Rooster & eten",null,{"$f":"Gegevens!C5","v":"Klaas"},null,null,null,null,null,null,null,{"$f":"Gegevens!C6","v":"Kind 2"},null,null,null,null,null,null,null,{"$f":"Gegevens!C7","v":"Kind 3"},null,null,null,null,null,null,null,{"$f":"Gegevens!C8","v":"Kind 4"},null,null,null,null,null,null,null,{"$f":"Gegevens!C9","v":"Kind 5"},null,null,null,null,null,null,null,{"$f":"Gegevens!C10","v":"Kind 6"},null,null,null,null,null,null,null,{"$f":"Gegevens!C11","v":"Kind 7"},null,null,null,null,null,null,null,{"$f":"Gegevens!C12","v":"kind 8"},null,null,null,null,null,null,null,{"$f":"Gegevens!C13","v":"kind 9"},null,null,null,null,null,null,null,{"$f":"Gegevens!C14","v":"kind 10"},null,null,null,null,null,null,null,{"$f":"Gegevens!C15","v":"kind 11"},null,null,null,null,null,null,null,{"$f":"Gegevens!C16","v":"kind 12"},null,null,null,null,null,null,null,{"$f":"Gegevens!C17","v":"kind 13"},null,null,null,null,null,null,null,{"$f":"Gegevens!C18","v":"kind 14"},null,null,null,null,null,null,null,{"$f":"Gegevens!C19","v":"kind 15"},null,null,null,null,null,null,null,{"$f":"Gegevens!C20","v":"kind 16"},null,null,null,null,null,null,null,{"$f":"Gegevens!C21","v":"kind 17"},null,null,null,null,null,null,null,{"$f":"Gegevens!C22","v":"kind 18"},null,null,null,null,null,null,null,{"$f":"Gegevens!C23","v":"kind 19"},null,null,null,null,null,null,null,{"$f":"Gegevens!C24","v":"Kind 20"}]
[null,null,null,"Uren registratie",null,null,null,null,null,null,null,"Uren registratie",null,null,null,null,null,null,null,"Uren registratie",null,null,null,null,null,null,null,"Uren registratie",null,null,null,null,null,null,null,"Uren registratie",null,null,null,null,null,null,null,"Uren registratie",null,null,null,null,null,null,null,"Uren registratie",null,null,null,null,null,null,null,"Uren registratie",null,null,null,null,null,null,null,"Uren registratie",null,null,null,null,null,null,null,"Uren registratie",null,null,null,null,null,null,null,"Uren registratie",null,null,null,null,null,null,null,"Uren registratie",null,null,null,null,null,null,null,"Uren registratie",null,null,null,null,null,null,null,"Uren registratie",null,null,null,null,null,null,null,"Uren registratie",null,null,null,null,null,null,null,"Uren registratie",null,null,null,null,null,null,null,"Uren registratie",null,null,null,null,null,null,null,"Uren registratie",null,null,null,null,null,null,null,"Uren registratie",null,null,null,null,null,null,null,"Uren registratie"]
[null,"Opvang  datum ",null,"begin ochtend","eind ochtend ","begin middag","eind middag","Lunch","Tussen-doortje","Diner",null,"begin ochtend","eind ochtend ","begin middag","eind middag","Lunch","Tussen-doortje","Diner",null,"begin ochtend","eind ochtend ","begin middag","eind middag","Lunch","Tussen-doortje","Diner",null,"begin ochtend","eind ochtend ","begin ochtend","eind middag","Lunch","Tussen-doortje","Diner",null,"begin ochtend","eind ochtend ","begin middag","eind middag","Lunch","Tussen-doortje","Diner",null,"begin ochtend","eind ochtend ","begin middag","eind middag","Lunch","Tussen-doortje","Diner",null,"begin ochtend","eind ochtend ","begin middag","eind middag","Lunch","Tussen-doortje","Diner",null,"begin ochtend","eind ochtend ","begin middag","eind middag","Lunch","Tussen-doortje","Diner",null,"begin ochtend","eind ochtend ","begin middag","eind middag","Lunch","Tussen-doortje","Diner",null,"begin ochtend","eind ochtend ","begin middag","eind middag","Lunch","Tussen-doortje","Diner",null,"begin ochtend","eind ochtend ","begin middag","eind middag","Lunch","Tussen-doortje","Diner",null,"begin ochtend","eind ochtend ","begin middag","eind middag","Lunch","Tussen-doortje","Diner",null,"begin ochtend","eind ochtend ","begin middag","eind middag","Lunch","Tussen-doortje","Diner",null,"begin ochtend","eind ochtend ","begin middag","eind middag","Lunch","Tussen-doortje","Diner",null,"begin ochtend","eind ochtend ","begin middag","eind middag","Lunch","Tussen-doortje","Diner",null,"begin ochtend","eind ochtend ","begin middag","eind middag","Lunch","Tussen-doortje","Diner",null,"begin ochtend","eind ochtend ","begin middag","eind middag","Lunch","Tussen-doortje","Diner",null,"begin ochtend","eind ochtend ","begin middag","eind middag","Lunch","Tussen-doortje","Diner",null,"begin ochtend","eind ochtend ","begin middag","eind middag","Lunch","Tussen-doortje","Diner",null,"begin ochtend","eind ochtend ","begin middag","eind middag","Lunch","Tussen-doortje","Diner"]
[null,"2017-01-01"]
[null,"2017-01-02"]
[null,"2017-01-03"]
[null,"2017-01-04"]
[null,"2017-01-05"]
[null,"2017-01-06"]
[null,"2017-01-07"]
[null,"2017-01-08"]
[null,"2017-01-09"]
[null,"2017-01-10"]
[null,"2017-01-11"]
[null,"2017-01-12"]
[null,"2017-01-13"]
[null,"2017-01-14"]
[null,"2017-01-15"]
[null,"2017-01-16"]
[null,"2017-01-17"]
[null,"2017-01-18"]
[null,"2017-01-19"]
[null,"2017-01-20"]
[null,"2017-01-21"]
[null,"2017-01-22"]
[null,"2017-01-23"]
[null,"2017-01-24"]
[null,"2017-01-25"]
[null,"2017-01-26"]
[null,"2017-01-27"]
[null,"2017-01-28"]
[null,"2017-01-29"]
[null,"2017-01-30"]
[null,"2017-01-31"]
[null,"2017-02-01"]
[null,"2017-02-02"]
[null,"2017-02-03"]
[null,"2017-02-04"]
[null,"2017-02-05"]
[null,"2017-02-06"]
[null,"2017-02-07"]
[null,"2017-02-08"]
[null,"2017-02-09"]
[null,"2017-02-10"]
[null,"2017-02-11"]
[null,"2017-02-12"]
[null,"2017-02-13"]
[null,"2017-02-14"]
[null,"2017-02-15"]
[null,"2017-02-16"]
[null,"2017-02-17"]
[null,"2017-02-18"]
[null,"2017-02-19"]
[null,"2017-02-20"]
[null,"2017-02-21"]
[null,"2017-02-22"]
[null,"2017-02-23"]
[null,"2017-02-24"]
[null,"2017-02-25"]
[null,"2017-02-26"]
[null,"2017-02-27"]
[null,"2017-02-28"]
[null,"2017-03-01"]
[null,"2017-03-02"]
[null,"2017-03-03"]
[null,"2017-03-04"]
[null,"2017-03-05"]
[null,"2017-03-06"]
[null,"2017-03-07"]
[null,"2017-03-08"]
[null,"2017-03-09"]
[null,"2017-03-10"]
[null,"2017-03-11"]
[null,"2017-03-12"]
[null,"2017-03-13"]
[null,"2017-03-14"]
[null,"2017-03-15"]
[null,"2017-03-16"]
[null,"2017-03-17"]
[null,"2017-03-18"]
[null,"2017-03-19"]
[null,"2017-03-20"]
[null,"2017-03-21"]
[null,"2017-03-22"]
[null,"2017-03-23"]
[null,"2017-03-24"]
[null,"2017-03-25"]
[null,"2017-03-26"]
[null,"2017-03-27"]
[null,"2017-03-28"]
[null,"2017-03-29"]
[null,"2017-03-30"]
[null,"2017-03-31"]
[null,"2017-04-01"]
[null,"2017-04-02"]
[null,"2017-04-03"]
[null,"2017-04-04"]
[null,"2017-04-05"]
[null,"2017-04-06"]
[null,"2017-04-07"]
[null,"2017-04-08"]
[null,"2017-04-09"]
[null,"2017-04-10"]
[null,"2017-04-11"]
[null,"2017-04-12"]
[null,"2017-04-13"]
[null,"2017-04-14"]
[null,"2017-04-15"]
[null,"2017-04-16"]
[null,"2017-04-17"]
[null,"2017-04-18"]
[null,"2017-04-19"]
[null,"2017-04-20"]
[null,"2017-04-21"]
[null,"2017-04-22"]
[null,"2017-04-23"]
[null,"2017-04-24"]
[null,"2017-04-25"]
[null,"2017-04-26"]
[null,"2017-04-27"]
[null,"2017-04-28"]
[null,"2017-04-29"]
[null,"2017-04-30"]
[null,"2017-05-01"]
[null,"2017-05-02"]
[null,"2017-05-03"]
[null,"2017-05-04"]
[null,"2017-05-05"]
[null,"2017-05-06"]
[null,"2017-05-07"]
[null,"2017-05-08"]
[null,"2017-05-09"]
[null,"2017-05-10"]
[null,"2017-05-11"]
[null,"2017-05-12"]
[null,"2017-05-13"]
[null,"2017-05-14"]
[null,"2017-05-15"]
[null,"2017-05-16"]
[null,"2017-05-17"]
[null,"2017-05-18"]
[null,"2017-05-19"]
[null,"2017-05-20"]
[null,"2017-05-21"]
[null,"2017-05-22"]
[null,"2017-05-23"]
[null,"2017-05-24"]
[null,"2017-05-25"]
[null,"2017-05-26"]
[null,"2017-05-27"]
[null,"2017-05-28"]
[null,"2017-05-29"]
[null,"2017-05-30"]
[null,"2017-05-31"]
[null,"2017-06-01"]
[null,"2017-06-02"]
[null,"2017-06-03"]
[null,"2017-06-04"]
[null,"2017-06-05"]
[null,"2017-06-06"]
[null,"2017-06-07"]
[null,"2017-06-08"]
[null,"2017-06-09"]
[null,"2017-06-10"]
[null,"2017-06-11"]
[null,"2017-06-12"]
[null,"2017-06-13"]
[null,"2017-06-14"]
[null,"2017-06-15"]
[null,"2017-06-16"]
[null,"2017-06-17"]
[null,"2017-06-18"]
[null,"2017-06-19"]
[null,"2017-06-20"]
[null,"2017-06-21"]
[null,"2017-06-22"]
[null,"2017-06-23"]
[null,"2017-06-24"]
[null,"2017-06-25"]
[null,"2017-06-26"]
[null,"2017-06-27"]
[null,"2017-06-28"]
[null,"2017-06-29"]
[null,"2017-06-30"]
[null,"2017-07-01"]
[null,"2017-07-02"]
[null,"2017-07-03"]
[null,"2017-07-04"]
[null,"2017-07-05"]
[null,"2017-07-06"]
[null,"2017-07-07"]
[null,"2017-07-08"]
[null,"2017-07-09"]
[null,"2017-07-10"]
[null,"2017-07-11"]
[null,"2017-07-12"]
[null,"2017-07-13"]
[null,"2017-07-14"]
[null,"2017-07-15"]
[null,"2017-07-16"]
[null,"2017-07-17"]
[null,"2017-07-18"]
[null,"2017-07-19"]
[null,"2017-07-20"]
[null,"2017-07-21"]
[null,"2017-07-22"]
[null,"2017-07-23"]
[null,"2017-07-24"]
[null,"2017-07-25"]
[null,"2017-07-26"]
[null,"2017-07-27"]
[null,"2017-07-28"]
[null,"2017-07-29"]
[null,"2017-07-30"]
[null,"2017-07-31"]
[null,"2017-08-01"]
[null,"2017-08-02"]
[null,"2017-08-03"]
[null,"2017-08-04"]
[null,"2017-08-05"]
[null,"2017-08-06"]
[null,"2017-08-07"]
[null,"2017-08-08"]
[null,"2017-08-09"]
[null,"2017-08-10"]
[null,"2017-08-11"]
[null,"2017-08-12"]
[null,"2017-08-13"]
[null,"2017-08-14"]
[null,"2017-08-15"]
[null,"2017-08-16"]
[null,"2017-08-17"]
[null,"2017-08-18"]
[null,"2017-08-19"]
[null,"2017-08-20"]
[null,"2017-08-21"]
[null,"2017-08-22"]
[null,"2017-08-23"]
[null,"2017-08-24"]
[null,"2017-08-25"]
[null,"2017-08-26"]
[null,"2017-08-27"]
[null,"2017-08-28"]
[null,"2017-08-29"]
[null,"2017-08-30"]
[null,"2017-08-31"]
[null,"2017-09-01"]
[null,"2017-09-02"]
[null,"2017-09-03"]
[null,"2017-09-04"]
[null,"2017-09-05"]
[null,"2017-09-06"]
[null,"2017-09-07"]
[null,"2017-09-08"]
[null,"2017-09-09"]
[null,"2017-09-10"]
[null,"2017-09-11"]
[null,"2017-09-12"]
[null,"2017-09-13"]
[null,"2017-09-14"]
[null,"2017-09-15"]
[null,"2017-09-16"]
[null,"2017-09-17"]
[null,"2017-09-18"]
[null,"2017-09-19"]
[null,"2017-09-20"]
[null,"2017-09-21"]
[null,"2017-09-22"]
[null,"2017-09-23"]
[null,"2017-09-24"]
[null,"2017-09-25"]
[null,"2017-09-26"]
[null,"2017-09-27"]
[null,"2017-09-28"]
[null,"2017-09-29"]
[null,"2017-09-30"]
[null,"2017-10-01"]
[null,"2017-10-02"]
[null,"2017-10-03"]
[null,"2017-10-04"]
[null,"2017-10-05"]
[null,"2017-10-06"]
[null,"2017-10-07"]
[null,"2017-10-08"]
[null,"2017-10-09"]
[null,"2017-10-10"]
[null,"2017-10-11"]
[null,"2017-10-12"]
[null,"2017-10-13"]
[null,"2017-10-14"]
[null,"2017-10-15"]
[null,"2017-10-16"]
[null,"2017-10-17"]
[null,"2017-10-18"]
[null,"2017-10-19"]
[null,"2017-10-20"]
[null,"2017-10-21"]
[null,"2017-10-22"]
[null,"2017-10-23"]
[null,"2017-10-24"]
[null,"2017-10-25"]
[null,"2017-10-26"]
[null,"2017-10-27"]
[null,"2017-10-28"]
[null,"2017-10-29"]
[null,"2017-10-30"]
[null,"2017-10-31"]
[null,"2017-11-01"]
[null,"2017-11-02"]
[null,"2017-11-03"]
[null,"2017-11-04"]
[null,"2017-11-05"]
[null,"2017-11-06"]
[null,"2017-11-07"]
[null,"2017-11-08"]
[null,"2017-11-09"]
[null,"2017-11-10"]
[null,"2017-11-11"]
[null,"2017-11-12"]
[null,"2017-11-13"]
[null,"2017-11-14"]
[null,"2017-11-15"]
[null,"2017-11-16"]
[null,"2017-11-17"]
[null,"2017-11-18"]
[null,"2017-11-19"]
[null,"2017-11-20"]
[null,"2017-11-21"]
[null,"2017-11-22"]
[null,"2017-11-23"]
[null,"2017-11-24"]
[null,"2017-11-25"]
[null,"2017-11-26"]
[null,"2017-11-27"]
[null,"2017-11-28"]
[null,"2017-11-29"]
[null,"2017-11-30"]
[null,"2017-12-01"]
[null,"2017-12-02"]
[null,"2017-12-03"]
[null,"2017-12-04"]
[null,"2017-12-05"]
[null,"2017-12-06"]
[null,"2017-12-07"]
[null,"2017-12-08"]
[null,"2017-12-09"]
[null,"2017-12-10"]
[null,"2017-12-11"]
[null,"2017-12-12"]
[null,"2017-12-13"]
[null,"2017-12-14"]
[null,"2017-12-15"]
[null,"2017-12-16"]
[null,"2017-12-17"]
[null,"2017-12-18"]
[null,"2017-12-19"]
[null,"2017-12-20"]
[null,"2017-12-21"]
[null,"2017-12-22"]
[null,"2017-12-23"]
[null,"2017-12-24"]
[null,"2017-12-25"]
[null,"2017-12-26"]
[null,"2017-12-27"]
[null,"2017-12-28"]
[null,"2017-12-29"]
[null,"2017-12-30"]
[null,"2017-12-31"]
[null,{"$f":"SUM(D371:FF371)","v":0},null,null,null,null,null,{"$f":"SUM(H6:H370)*Gegevens!D27","v":0},{"$f":"SUM(I6:I370)*Gegevens!D28","v":0},{"$f":"SUM(J6:J370)*Gegevens!D29","v":0},null,null,null,null,null,{"$f":"SUM(P6:P370)*Gegevens!D27","v":0},{"$f":"SUM(Q6:Q370)*Gegevens!D28","v":0},{"$f":"SUM(R6:R370)*Gegevens!D29","v":0},null,null,null,null,null,{"$f":"SUM(X6:X370)*Gegevens!D27","v":0},{"$f":"SUM(Y6:Y370)*Gegevens!D28","v":0},{"$f":"SUM(Z6:Z370)*Gegevens!D29","v":0},null,null,null,null,null,{"$f":"SUM(AF6:AF370)*Gegevens!D27","v":0},{"$f":"SUM(AG6:AG370)*Gegevens!D28","v":0},{"$f":"SUM(AH6:AH370)*Gegevens!D29","v":0},null,null,null,null,null,{"$f":"SUM(AN6:AN370)*Gegevens!D27","v":0},{"$f":"SUM(AO6:AO370)*Gegevens!D28","v":0},{"$f":"SUM(AP6:AP370)*Gegevens!D29","v":0},null,null,null,null,null,{"$f":"SUM(AV6:AV370)*Gegevens!D27","v":0},{"$f":"SUM(AW6:AW370)*Gegevens!D28","v":0},{"$f":"SUM(AX6:AX370)*Gegevens!D29","v":0},null,null,null,null,null,{"$f":"SUM(BD6:BD370)*Gegevens!D27","v":0},{"$f":"SUM(BE6:BE370)*Gegevens!D28","v":0},{"$f":"SUM(BF6:BF370)*Gegevens!D29","v":0},null,null,null,null,null,{"$f":"SUM(BL6:BL370)*Gegevens!D27","v":0},{"$f":"SUM(BM6:BM370)*Gegevens!D28","v":0},{"$f":"SUM(BN6:BN370)*Gegevens!D29","v":0},null,null,null,null,null,{"$f":"SUM(BT6:BT370)*Gegevens!D27","v":0},{"$f":"SUM(BU6:BU370)*Gegevens!D28","v":0},{"$f":"SUM(BV6:BV370)*Gegevens!D29","v":0},null,null,null,null,null,{"$f":"SUM(CB6:CB370)*Gegevens!D27","v":0},{"$f":"SUM(CC6:CC370)*Gegevens!D28","v":0},{"$f":"SUM(CD6:CD370)*Gegevens!D29","v":0},null,null,null,null,null,{"$f":"SUM(CJ6:CJ370)*Gegevens!D27","v":0},{"$f":"SUM(CK6:CK370)*Gegevens!D28","v":0},{"$f":"SUM(CL6:CL370)*Gegevens!D29","v":0},null,null,null,null,null,{"$f":"SUM(CR6:CR370)*Gegevens!D27","v":0},{"$f":"SUM(CS6:CS370)*Gegevens!D28","v":0},{"$f":"SUM(CT6:CT370)*Gegevens!D29","v":0},null,null,null,null,null,{"$f":"SUM(CZ6:CZ370)*Gegevens!D27","v":0},{"$f":"SUM(DA6:DA370)*Gegevens!D28","v":0},{"$f":"SUM(DB6:DB370)*Gegevens!D29","v":0},null,null,null,null,null,{"$f":"SUM(DH6:DH370)*Gegevens!D27","v":0},{"$f":"SUM(DI6:DI370)*Gegevens!D28","v":0},{"$f":"SUM(DJ6:DJ370)*Gegevens!D29","v":0},null,null,null,null,null,{"$f":"SUM(DP6:DP370)*Gegevens!D27","v":0},{"$f":"SUM(DQ6:DQ370)*Gegevens!D28","v":0},{"$f":"SUM(DR6:DR370)*Gegevens!D29","v":0},null,null,null,null,null,{"$f":"SUM(DX6:DX370)*Gegevens!D27","v":0},{"$f":"SUM(DY6:DY370)*Gegevens!D28","v":0},{"$f":"SUM(DZ6:DZ370)*Gegevens!D29","v":0},null,null,null,null,null,{"$f":"SUM(EF6:EF370)*Gegevens!D27","v":0},{"$f":"SUM(EG6:EG370)*Gegevens!D28","v":0},{"$f":"SUM(EH6:EH370)*Gegevens!D29","v":0},null,null,null,null,null,{"$f":"SUM(EN6:EN370)*Gegevens!D27","v":0},{"$f":"SUM(EO6:EO370)*Gegevens!D28","v":0},{"$f":"SUM(EP6:EP370)*Gegevens!D29","v":0},null,null,null,null,null,{"$f":"SUM(EV6:EV370)*Gegevens!D27","v":0},{"$f":"SUM(EW6:EW370)*Gegevens!D28","v":0},{"$f":"SUM(EX6:EX370)*Gegevens!D29","v":0},null,null,null,null,null,{"$f":"SUM(FD6:FD370)*Gegevens!D27","v":0},{"$f":"SUM(FE6:FE370)*Gegevens!D28","v":0},{"$f":"SUM(FF6:FF370)*Gegevens!D29","v":0}]

{"sheet":"Kilometer registratie","index":3,"n_rows":0,"n_cols":0,"rows_kept":0,"cut":false,"hidden":true,"merged":[]}

{"sheet":"Was, Droog & Vaatwassen","index":4,"n_rows":54,"n_cols":51,"rows_kept":54,"cut":false,"hidden":false,"merged":[[2,40,2,42],[2,44,2,46],[2,48,2,50],[53,17,55,36],[1,1,1,51],[2,4,2,6],[2,8,2,10],[2,12,2,14],[2,16,2,18],[2,20,2,22],[2,24,2,26],[2,28,2,30],[2,32,2,34],[2,36,2,38]]}
[]
[]
[null,null,"Was & Droog ",null,"Januari",null,null,null,"Februari",null,null,null,"Maart",null,null,null,"April",null,null,null,"Mei",null,null,null,"Juni",null,null,null,"Juli",null,null,null,"Augustus",null,null,null,"September",null,null,null,"Oktober",null,null,null,"November",null,null,null,"December"]
[null,null,"Dagen van de maand",null,"Wassen","Drogen","Vaat",null,"Wassen","Drogen","Vaat",null,"Wassen","Drogen","Vaat",null,"Wassen","Drogen","Vaat",null,"Wassen","Drogen","Vaat",null,"Wassen","Drogen","Vaat",null,"Wassen","Drogen","Vaat",null,"Wassen","Drogen","Vaat",null,"Wassen","Drogen","Vaat",null,"Wassen","Drogen","Vaat",null,"Wassen","Drogen","Vaat",null,"Wassen","Drogen","Vaat"]
[null,null,1]
[null,null,2]
[null,null,3]
[null,null,4]
[null,null,5]
[null,null,6]
[null,null,7]
[null,null,8]
[null,null,9]
[null,null,10]
[null,null,11]
[null,null,12]
[null,null,13]
[null,null,14]
[null,null,15]
[null,null,16]
[null,null,17]
[null,null,18]
[null,null,19]
[null,null,20]
[null,null,21]
[null,null,22]
[null,null,23]
[null,null,24]
[null,null,25]
[null,null,26]
[null,null,27]
[null,null,28]
[null,null,29]
[null,null,30]
[null,null,31]
[null,null,{"$f":"SUM(E36:AX36)","v":0},null,{"$f":"SUM(E5:E35)*Gegevens!D30","v":0},{"$f":"SUM(F5:F35)*Gegevens!D31","v":0},{"$f":"SUM(G5:G35)*Gegevens!D32","v":0},null,{"$f":"SUM(I5:I35)*Gegevens!D30","v":0},{"$f":"SUM(J5:J35)*Gegevens!D31","v":0},{"$f":"SUM(K5:K35)*Gegevens!D32","v":0},null,{"$f":"SUM(M5:M35)*Gegevens!D30","v":0},{"$f":"SUM(N5:N35)*Gegevens!D31","v":0},{"$f":"SUM(O5:O35)*Gegevens!D32","v":0},null,{"$f":"SUM(Q5:Q35)*Gegevens!D30","v":0},{"$f":"SUM(R5:R35)*Gegevens!D31","v":0},{"$f":"SUM(S5:S35)*Gegevens!D32","v":0},null,{"$f":"SUM(U5:U35)*Gegevens!D30","v":0},{"$f":"SUM(V5:V35)*Gegevens!D31","v":0},{"$f":"SUM(W5:W35)*Gegevens!D32","v":0},null,{"$f":"SUM(Y5:Y35)*Gegevens!D30","v":0},{"$f":"SUM(Z5:Z35)*Gegevens!D31","v":0},{"$f":"SUM(AA5:AA35)*Gegevens!D32","v":0},null,{"$f":"SUM(AC5:AC35)*Gegevens!D30","v":0},{"$f":"SUM(AD5:AD35)*Gegevens!D31","v":0},{"$f":"SUM(AE5:AE35)*Gegevens!D32","v":0},null,{"$f":"SUM(AG5:AG35)*Gegevens!D30","v":0},{"$f":"SUM(AH5:AH35)*Gegevens!D31","v":0},{"$f":"SUM(AI5:AI35)*Gegevens!D32","v":0},null,{"$f":"SUM(AK5:AK35)*Gegevens!D30","v":0},{"$f":"SUM(AL5:AL35)*Gegevens!D31","v":0},{"$f":"SUM(AM5:AM35)*Gegevens!D32","v":0},null,{"$f":"SUM(AO5:AO35)*Gegevens!D30","v":0},{"$f":"SUM(AP5:AP35)*Gegevens!D31","v":0},{"$f":"SUM(AQ5:AQ35)*Gegevens!E32","v":0},null,{"$f":"SUM(AS5:AS35)*Gegevens!D30","v":0},{"$f":"SUM(AT5:AT35)*Gegevens!D31","v":0},{"$f":"SUM(AU5:AU35)*Gegevens!E32","v":0},null,{"$f":"SUM(AW5:AW35)*Gegevens!D30","v":0},{"$f":"SUM(AX5:AX35)*Gegevens!D31","v":0},{"$f":"SUM(AY5:AY35)*Gegevens!E32","v":0}]
[]
[]
[]
[]
[]
[]
[]
[]
[]
[]
[]
[]
[]
[]
[]
[]
[]
[null,null,null,null,null,null,null,null,null,null,null,null,null,null,null,null,null,"Hieronder is echt niets mee ;) "]

{"sheet":"jan","index":5,"n_rows":53,"n_cols":8,"rows_kept":53,"cut":false,"hidden":false,"merged":[[0,0,0,7],[1,0,4,0]]}
["Kilometerregistratie Januari"]
[null,"Uw naam",null,"Kilometervergoeding",{"$f":"Gegevens!D33","v":0.19}]
[null,null,null,"Voor periode","januari"]
[null,"Beschrijving voertuig","Fiat 500","Totaal aantal kilometers",{"$f":"G53","v":0}]
[null,"Kenteken","00-AA-20","Totale vergoeding",{"$f":"H53","v":0}]
["Datum","Vertrekpunt","Bestemming","Beschrijving/opmerkingen","Beginstand teller","Eindstand teller","Aantal kilometers","Vergoeding"]
[null,null,null,null,0,null,{"$f":"IF(OR(ISBLANK(E7),ISBLANK(F7)),0,F7-E7)","v":0},{"$f":"G7*$E$2","v":0}]
[null,null,null,null,null,null,0,0]
[null,null,null,null,null,null,0,0]
[null,null,null,null,null,null,0,0]
[null,null,null,null,null,null,0,0]
[null,null,null,null,null,null,0,0]
[null,null,null,null,null,null,0,0]
[null,null,null,null,null,null,0,0]
[null,null,null,null,null,null,0,0]
[null,null,null,null,null,null,0,0]
[null,null,null,null,null,null,0,0]
[null,null,null,null,null,null,0,0]
[null,null,null,null,null,null,0,0]
[null,null,null,null,null,null,0,0]
[null,null,null,null,null,null,0,0]
[null,null,null,null,null,null,0,0]
[null,null,null,null,null,null,0,0]
[null,null,null,null,null,null,0,0]
[null,null,null,null,null,null,0,0]
[null,null,null,null,null,null,0,0]
[null,null,null,null,null,null,0,0]
[null,null,null,null,null,null,0,0]
[null,null,null,null,null,null,0,0]
[null,null,null,null,null,null,0,0]
[null,null,null,null,null,null,0,0]
[null,null,null,null,null,null,0,0]
[null,null,null,null,null,null,0,0]
[null,null,null,null,null,null,0,0]
[null,null,null,null,null,null,0,0]
[null,null,null,null,null,null,0,0]
[null,null,null,null,null,null,0,0]
[null,null,null,null,null,null,0,0]
[null,null,null,null,null,null,0,0]
[null,null,null,null,null,null,0,0]
[null,null,null,null,null,null,0,0]
[null,null,null,null,null,null,0,0]
[null,null,null,null,null,null,0,0]
[null,null,null,null,null,null,0,0]
[null,null,null,null,null,null,0,0]
[null,null,null,null,null,null,0,0]
[null,null,null,null,null,null,0,0]
[null,null,null,null,null,null,0,0]
[null,null,null,null,null,null,0,0]
[null,null,null,null,null,null,0,0]
[null,null,null,null,null,null,0,0]
[null,null,null,null,null,null,0,0]
[null,null,null,null,null,"Totalen",{"$f":"SUM(G7:G52)","v":0},{"$f":"G53*E2","v":0}]

{"sheet":"feb","index":6,"n_rows":53,"n_cols":8,"rows_kept":53,"cut":false,"hidden":false,"merged":[[0,0,0,7],[1,0,4,0]]}
["Kilometerregistratie februari"]
[null,"Uw naam",{"$f":"jan!C2","v":0},"Kilometervergoeding",{"$f":"jan!E2","v":0.19}]
[null,null,null,"Voor periode","februari"]
[null,"Beschrijving voertuig","d","Totaal aantal kilometers",{"$f":"G53","v":0}]
[null,"Kenteken",{"$f":"jan!C5","v":"00-AA-20"},"Totale vergoeding",{"$f":"H53","v":0}]
["Datum","Vertrekpunt","Bestemming","Beschrijving/opmerkingen","Beginstand teller","Eindstand teller","Aantal kilometers","Vergoeding"]
[null,null,null,null,0,null,{"$f":"IF(OR(ISBLANK(E7),ISBLANK(F7)),0,F7-E7)","v":0},{"$f":"G7*$E$2","v":0}]
[null,null,null,null,0,null,0,0]
[null,null,null,null,null,null,0,0]
[null,null,null,null,null,null,0,0]
[null,null,null,null,null,null,0,0]
[null,null,null,null,null,null,0,0]
[null,null,null,null,null,null,0,0]
[null,null,null,null,null,null,0,0]
[null,null,null,null,null,null,0,0]
[null,null,null,null,null,null,0,0]
[null,null,null,null,null,null,0,0]
[null,null,null,null,null,null,0,0]
[null,null,null,null,null,null,0,0]
[null,null,null,null,null,null,0,0]
[null,null,null,null,null,null,0,0]
[null,null,null,null,null,null,0,0]
[null,null,null,null,null,null,0,0]
[null,null,null,null,null,null,0,0]
[null,null,null,null,null,null,0,0]
[null,null,null,null,null,null,0,0]
[null,null,null,null,null,null,0,0]
[null,null,null,null,null,null,0,0]
[null,null,null,null,null,null,0,0]
[null,null,null,null,null,null,0,0]
[null,null,null,null,null,null,0,0]
[null,null,null,null,null,null,0,0]
[null,null,null,null,null,null,0,0]
[null,null,null,null,null,null,0,0]
[null,null,null,null,null,null,0,0]
[null,null,null,null,null,null,0,0]
[null,null,null,null,null,null,0,0]
[null,null,null,null,null,null,0,0]
[null,null,null,null,null,null,0,0]
[null,null,null,null,null,null,0,0]
[null,null,null,null,null,null,0,0]
[null,null,null,null,null,null,0,0]
[null,null,null,null,null,null,0,0]
[null,null,null,null,null,null,0,0]
[null,null,null,null,null,null,0,0]
[null,null,null,null,null,null,0,0]
[null,null,null,null,null,null,0,0]
[null,null,null,null,null,null,0,0]
[null,null,null,null,null,null,0,0]
[null,null,null,null,null,null,0,0]
[null,null,null,null,null,null,0,0]
[null,null,null,null,null,null,0,0]
[null,null,null,null,null,"Totalen",{"$f":"SUM(G7:G52)","v":0},{"$f":"G53*E2","v":0}]

{"sheet":"maa","index":7,"n_rows":53,"n_cols":8,"rows_kept":53,"cut":false,"hidden":false,"merged":[[0,0,0,7],[1,0,4,0]]}
["Kilometerregistratie maart"]
[null,"Uw naam",{"$f":"jan!C2","v":0},"Kilometervergoeding",{"$f":"jan!E2","v":0.19}]
[null,null,null,"Voor periode","maart"]
[null,"Beschrijving voertuig",{"$f":"jan!C4","v":"Fiat 500"},"Totaal aantal kilometers",{"$f":"G53","v":0}]
[null,"Kenteken",{"$f":"jan!C5","v":"00-AA-20"},"Totale vergoeding",{"$f":"H53","v":0}]
["Datum","Vertrekpunt","Bestemming","Beschrijving/opmerkingen","Beginstand teller","Eindstand teller","Aantal kilometers","Vergoeding"]
[null,null,null,null,0,null,{"$f":"IF(OR(ISBLANK(E7),ISBLANK(F7)),0,F7-E7)","v":0},{"$f":"G7*$E$2","v":0}]
[null,null,null,null,null,null,0,0]
[null,null,null,null,null,null,0,0]
[null,null,null,null,null,null,0,0]
[null,null,null,null,null,null,0,0]
[null,null,null,null,null,null,0,0]
[null,null,null,null,null,null,0,0]
[null,null,null,null,null,null,0,0]
[null,null,null,null,null,null,0,0]
[null,null,null,null,null,null,0,0]
[null,null,null,null,null,null,0,0]
[null,null,null,null,null,null,0,0]
[null,null,null,null,null,null,0,0]
[null,null,null,null,null,null,0,0]
[null,null,null,null,null,null,0,0]
[null,null,null,null,null,null,0,0]
[null,null,null,null,null,null,0,0]
[null,null,null,null,null,null,0,0]
[null,null,null,null,null,null,0,0]
[null,null,null,null,null,null,0,0]
[null,null,null,null,null,null,0,0]
[null,null,null,null,null,null,0,0]
[null,null,null,null,null,null,0,0]
[null,null,null,null,null,null,0,0]
[null,null,null,null,null,null,0,0]
[null,null,null,null,null,null,0,0]
[null,null,null,null,null,null,0,0]
[null,null,null,null,null,null,0,0]
[null,null,null,null,null,null,0,0]
[null,null,null,null,null,null,0,0]
[null,null,null,null,null,null,0,0]
[null,null,null,null,null,null,0,0]
[null,null,null,null,null,null,0,0]
[null,null,null,null,null,null,0,0]
[null,null,null,null,null,null,0,0]
[null,null,null,null,null,null,0,0]
[null,null,null,null,null,null,0,0]
[null,null,null,null,null,null,0,0]
[null,null,null,null,null,null,0,0]
[null,null,null,null,null,null,0,0]
[null,null,null,null,null,null,0,0]
[null,null,null,null,null,null,0,0]
[null,null,null,null,null,null,0,0]
[null,null,null,null,null,null,0,0]
[null,null,null,null,null,null,0,0]
[null,null,null,null,null,null,0,0]
[null,null,null,null,null,"Totalen",{"$f":"SUM(G7:G52)","v":0},{"$f":"G53*E2","v":0}]

{"sheet":"apr","index":8,"n_rows":53,"n_cols":8,"rows_kept":53,"cut":false,"hidden":false,"merged":[[0,0,0,7],[1,0,4,0]]}
["Kilometerregistratie april"]
[null,"Uw naam",{"$f":"jan!C2","v":0},"Kilometervergoeding",{"$f":"jan!E2","v":0.19}]
[null,null,null,"Voor periode","april"]
[null,"Beschrijving voertuig",{"$f":"jan!C4","v":"Fiat 500"},"Totaal aantal kilometers",{"$f":"G53","v":0}]
[null,"Kenteken",{"$f":"jan!C5","v":"00-AA-20"},"Totale vergoeding",{"$f":"H53","v":0}]
["Datum","Vertrekpunt","Bestemming","Beschrijving/opmerkingen","Beginstand teller","Eindstand teller","Aantal kilometers","Vergoeding"]
[null,null,null,null,0,null,{"$f":"IF(OR(ISBLANK(E7),ISBLANK(F7)),0,F7-E7)","v":0},{"$f":"G7*$E$2","v":0}]
[null,null,null,null,null,null,0,0]
[null,null,null,null,null,null,0,0]
[null,null,null,null,null,null,0,0]
[null,null,null,null,null,null,0,0]
[null,null,null,null,null,null,0,0]
[null,null,null,null,null,null,0,0]
[null,null,null,null,null,null,0,0]
[null,null,null,null,null,null,0,0]
[null,null,null,null,null,null,0,0]
[null,null,null,null,null,null,0,0]
[null,null,null,null,null,null,0,0]
[null,null,null,null,null,null,0,0]
[null,null,null,null,null,null,0,0]
[null,null,null,null,null,null,0,0]
[null,null,null,null,null,null,0,0]
[null,null,null,null,null,null,0,0]
[null,null,null,null,null,null,0,0]
[null,null,null,null,null,null,0,0]
[null,null,null,null,null,null,0,0]
[null,null,null,null,null,null,0,0]
[null,null,null,null,null,null,0,0]
[null,null,null,null,null,null,0,0]
[null,null,null,null,null,null,0,0]
[null,null,null,null,null,null,0,0]
[null,null,null,null,null,null,0,0]
[null,null,null,null,null,null,0,0]
[null,null,null,null,null,null,0,0]
[null,null,null,null,null,null,0,0]
[null,null,null,null,null,null,0,0]
[null,null,null,null,null,null,0,0]
[null,null,null,null,null,null,0,0]
[null,null,null,null,null,null,0,0]
[null,null,null,null,null,null,0,0]
[null,null,null,null,null,null,0,0]
[null,null,null,null,null,null,0,0]
[null,null,null,null,null,null,0,0]
[null,null,null,null,null,null,0,0]
[null,null,null,null,null,null,0,0]
[null,null,null,null,null,null,0,0]
[null,null,null,null,null,null,0,0]
[null,null,null,null,null,null,0,0]
[null,null,null,null,null,null,0,0]
[null,null,null,null,null,null,0,0]
[null,null,null,null,null,null,0,0]
[null,null,null,null,null,null,0,0]
[null,null,null,null,null,"Totalen",{"$f":"SUM(G7:G52)","v":0},{"$f":"G53*E2","v":0}]

{"sheet":"mei","index":9,"n_rows":53,"n_cols":8,"rows_kept":53,"cut":false,"hidden":false,"merged":[[0,0,0,7],[1,0,4,0]]}
["Kilometerregistratie mei"]
[null,"Uw naam",{"$f":"jan!C2","v":0},"Kilometervergoeding",{"$f":"jan!E2","v":0.19}]
[null,null,null,"Voor periode","mei"]
[null,"Beschrijving voertuig",{"$f":"jan!C4","v":"Fiat 500"},"Totaal aantal kilometers",{"$f":"G53","v":0}]
[null,"Kenteken",{"$f":"jan!C5","v":"00-AA-20"},"Totale vergoeding",{"$f":"H53","v":0}]
["Datum","Vertrekpunt","Bestemming","Beschrijving/opmerkingen","Beginstand teller","Eindstand teller","Aantal kilometers","Vergoeding"]
[null,null,null,null,0,null,{"$f":"IF(OR(ISBLANK(E7),ISBLANK(F7)),0,F7-E7)","v":0},{"$f":"G7*$E$2","v":0}]
[null,null,null,null,null,null,0,0]
[null,null,null,null,null,null,0,0]
[null,null,null,null,null,null,0,0]
[null,null,null,null,null,null,0,0]
[null,null,null,null,null,null,0,0]
[null,null,null,null,null,null,0,0]
[null,null,null,null,null,null,0,0]
[null,null,null,null,null,null,0,0]
[null,null,null,null,null,null,0,0]
[null,null,null,null,null,null,0,0]
[null,null,null,null,null,null,0,0]
[null,null,null,null,null,null,0,0]
[null,null,null,null,null,null,0,0]
[null,null,null,null,null,null,0,0]
[null,null,null,null,null,null,0,0]
[null,null,null,null,null,null,0,0]
[null,null,null,null,null,null,0,0]
[null,null,null,null,null,null,0,0]
[null,null,null,null,null,null,0,0]
[null,null,null,null,null,null,0,0]
[null,null,null,null,null,null,0,0]
[null,null,null,null,null,null,0,0]
[null,null,null,null,null,null,0,0]
[null,null,null,null,null,null,0,0]
[null,null,null,null,null,null,0,0]
[null,null,null,null,null,null,0,0]
[null,null,null,null,null,null,0,0]
[null,null,null,null,null,null,0,0]
[null,null,null,null,null,null,0,0]
[null,null,null,null,null,null,0,0]
[null,null,null,null,null,null,0,0]
[null,null,null,null,null,null,0,0]
[null,null,null,null,null,null,0,0]
[null,null,null,null,null,null,0,0]
[null,null,null,null,null,null,0,0]
[null,null,null,null,null,null,0,0]
[null,null,null,null,null,null,0,0]
[null,null,null,null,null,null,0,0]
[null,null,null,null,null,null,0,0]
[null,null,null,null,null,null,0,0]
[null,null,null,null,null,null,0,0]
[null,null,null,null,null,null,0,0]
[null,null,null,null,null,null,0,0]
[null,null,null,null,null,null,0,0]
[null,null,null,null,null,null,0,0]
[null,null,null,null,null,"Totalen",{"$f":"SUM(G7:G52)","v":0},{"$f":"G53*E2","v":0}]

{"sheet":"juni","index":10,"n_rows":53,"n_cols":8,"rows_kept":53,"cut":false,"hidden":false,"merged":[[0,0,0,7],[1,0,4,0]]}
["Kilometerregistratie juni"]
[null,"Uw naam",{"$f":"jan!C2","v":0},"Kilometervergoeding",{"$f":"jan!E2","v":0.19}]
[null,null,null,"Voor periode","juni"]
[null,"Beschrijving voertuig",{"$f":"jan!C4","v":"Fiat 500"},"Totaal aantal kilometers",{"$f":"G53","v":0}]
[null,"Kenteken",{"$f":"jan!C5","v":"00-AA-20"},"Totale vergoeding",{"$f":"H53","v":0}]
["Datum","Vertrekpunt","Bestemming","Beschrijving/opmerkingen","Beginstand teller","Eindstand teller","Aantal kilometers","Vergoeding"]
[null,null,null,null,0,null,{"$f":"IF(OR(ISBLANK(E7),ISBLANK(F7)),0,F7-E7)","v":0},{"$f":"G7*$E$2","v":0}]
[null,null,null,null,null,null,0,0]
[null,null,null,null,null,null,0,0]
[null,null,null,null,null,null,0,0]
[null,null,null,null,null,null,0,0]
[null,null,null,null,null,null,0,0]
[null,null,null,null,null,null,0,0]
[null,null,null,null,null,null,0,0]
[null,null,null,null,null,null,0,0]
[null,null,null,null,null,null,0,0]
[null,null,null,null,null,null,0,0]
[null,null,null,null,null,null,0,0]
[null,null,null,null,null,null,0,0]
[null,null,null,null,null,null,0,0]
[null,null,null,null,null,null,0,0]
[null,null,null,null,null,null,0,0]
[null,null,null,null,null,null,0,0]
[null,null,null,null,null,null,0,0]
[null,null,null,null,null,null,0,0]
[null,null,null,null,null,null,0,0]
[null,null,null,null,null,null,0,0]
[null,null,null,null,null,null,0,0]
[null,null,null,null,null,null,0,0]
[null,null,null,null,null,null,0,0]
[null,null,null,null,null,null,0,0]
[null,null,null,null,null,null,0,0]
[null,null,null,null,null,null,0,0]
[null,null,null,null,null,null,0,0]
[null,null,null,null,null,null,0,0]
[null,null,null,null,null,null,0,0]
[null,null,null,null,null,null,0,0]
[null,null,null,null,null,null,0,0]
[null,null,null,null,null,null,0,0]
[null,null,null,null,null,null,0,0]
[null,null,null,null,null,null,0,0]
[null,null,null,null,null,null,0,0]
[null,null,null,null,null,null,0,0]
[null,null,null,null,null,null,0,0]
[null,null,null,null,null,null,0,0]
[null,null,null,null,null,null,0,0]
[null,null,null,null,null,null,0,0]
[null,null,null,null,null,null,0,0]
[null,null,null,null,null,null,0,0]
[null,null,null,null,null,null,0,0]
[null,null,null,null,null,null,0,0]
[null,null,null,null,null,null,0,0]
[null,null,null,null,null,"Totalen",{"$f":"SUM(G7:G52)","v":0},{"$f":"G53*E2","v":0}]

{"sheet":"juli","index":11,"n_rows":53,"n_cols":8,"rows_kept":53,"cut":false,"hidden":false,"merged":[[0,0,0,7],[1,0,4,0]]}
["Kilometerregistratie juli"]
[null,"Uw naam",{"$f":"jan!C2","v":0},"Kilometervergoeding",{"$f":"jan!E2","v":0.19}]
[null,null,null,"Voor periode","juli"]
[null,"Beschrijving voertuig",{"$f":"jan!C4","v":"Fiat 500"},"Totaal aantal kilometers",{"$f":"G53","v":0}]
[null,"Kenteken",{"$f":"jan!C5","v":"00-AA-20"},"Totale vergoeding",{"$f":"H53","v":0}]
["Datum","Vertrekpunt","Bestemming","Beschrijving/opmerkingen","Beginstand teller","Eindstand teller","Aantal kilometers","Vergoeding"]
[null,null,null,null,0,null,{"$f":"IF(OR(ISBLANK(E7),ISBLANK(F7)),0,F7-E7)","v":0},{"$f":"G7*$E$2","v":0}]
[null,null,null,null,null,null,0,0]
[null,null,null,null,null,null,0,0]
[null,null,null,null,null,null,0,0]
[null,null,null,null,null,null,0,0]
[null,null,null,null,null,null,0,0]
[null,null,null,null,null,null,0,0]
[null,null,null,null,null,null,0,0]
[null,null,null,null,null,null,0,0]
[null,null,null,null,null,null,0,0]
[null,null,null,null,null,null,0,0]
[null,null,null,null,null,null,0,0]
[null,null,null,null,null,null,0,0]
[null,null,null,null,null,null,0,0]
[null,null,null,null,null,null,0,0]
[null,null,null,null,null,null,0,0]
[null,null,null,null,null,null,0,0]
[null,null,null,null,null,null,0,0]
[null,null,null,null,null,null,0,0]
[null,null,null,null,null,null,0,0]
[null,null,null,null,null,null,0,0]
[null,null,null,null,null,null,0,0]
[null,null,null,null,null,null,0,0]
[null,null,null,null,null,null,0,0]
[null,null,null,null,null,null,0,0]
[null,null,null,null,null,null,0,0]
[null,null,null,null,null,null,0,0]
[null,null,null,null,null,null,0,0]
[null,null,null,null,null,null,0,0]
[null,null,null,null,null,null,0,0]
[null,null,null,null,null,null,0,0]
[null,null,null,null,null,null,0,0]
[null,null,null,null,null,null,0,0]
[null,null,null,null,null,null,0,0]
[null,null,null,null,null,null,0,0]
[null,null,null,null,null,null,0,0]
[null,null,null,null,null,null,0,0]
[null,null,null,null,null,null,0,0]
[null,null,null,null,null,null,0,0]
[null,null,null,null,null,null,0,0]
[null,null,null,null,null,null,0,0]
[null,null,null,null,null,null,0,0]
[null,null,null,null,null,null,0,0]
[null,null,null,null,null,null,0,0]
[null,null,null,null,null,null,0,0]
[null,null,null,null,null,null,0,0]
[null,null,null,null,null,"Totalen",{"$f":"SUM(G7:G52)","v":0},{"$f":"G53*E2","v":0}]

{"sheet":"aug","index":12,"n_rows":53,"n_cols":8,"rows_kept":53,"cut":false,"hidden":false,"merged":[[0,0,0,7],[1,0,4,0]]}
["Kilometerregistratie augustus"]
[null,"Uw naam",{"$f":"jan!C2","v":0},"Kilometervergoeding",{"$f":"jan!E2","v":0.19}]
[null,null,null,"Voor periode","augustus"]
[null,"Beschrijving voertuig",{"$f":"jan!C4","v":"Fiat 500"},"Totaal aantal kilometers",{"$f":"G53","v":0}]
[null,"Kenteken",{"$f":"jan!C5","v":"00-AA-20"},"Totale vergoeding",{"$f":"H53","v":0}]
["Datum","Vertrekpunt","Bestemming","Beschrijving/opmerkingen","Beginstand teller","Eindstand teller","Aantal kilometers","Vergoeding"]
[null,null,null,null,0,null,{"$f":"IF(OR(ISBLANK(E7),ISBLANK(F7)),0,F7-E7)","v":0},{"$f":"G7*$E$2","v":0}]
[null,null,null,null,null,null,0,0]
[null,null,null,null,null,null,0,0]
[null,null,null,null,null,null,0,0]
[null,null,null,null,null,null,0,0]
[null,null,null,null,null,null,0,0]
[null,null,null,null,null,null,0,0]
[null,null,null,null,null,null,0,0]
[null,null,null,null,null,null,0,0]
[null,null,null,null,null,null,0,0]
[null,null,null,null,null,null,0,0]
[null,null,null,null,null,null,0,0]
[null,null,null,null,null,null,0,0]
[null,null,null,null,null,null,0,0]
[null,null,null,null,null,null,0,0]
[null,null,null,null,null,null,0,0]
[null,null,null,null,null,null,0,0]
[null,null,null,null,null,null,0,0]
[null,null,null,null,null,null,0,0]
[null,null,null,null,null,null,0,0]
[null,null,null,null,null,null,0,0]
[null,null,null,null,null,null,0,0]
[null,null,null,null,null,null,0,0]
[null,null,null,null,null,null,0,0]
[null,null,null,null,null,null,0,0]
[null,null,null,null,null,null,0,0]
[null,null,null,null,null,null,0,0]
[null,null,null,null,null,null,0,0]
[null,null,null,null,null,null,0,0]
[null,null,null,null,null,null,0,0]
[null,null,null,null,null,null,0,0]
[null,null,null,null,null,null,0,0]
[null,null,null,null,null,null,0,0]
[null,null,null,null,null,null,0,0]
[null,null,null,null,null,null,0,0]
[null,null,null,null,null,null,0,0]
[null,null,null,null,null,null,0,0]
[null,null,null,null,null,null,0,0]
[null,null,null,null,null,null,0,0]
[null,null,null,null,null,null,0,0]
[null,null,null,null,null,null,0,0]
[null,null,null,null,null,null,0,0]
[null,null,null,null,null,null,0,0]
[null,null,null,null,null,null,0,0]
[null,null,null,null,null,null,0,0]
[null,null,null,null,null,null,0,0]
[null,null,null,null,null,"Totalen",{"$f":"SUM(G7:G52)","v":0},{"$f":"G53*E2","v":0}]

{"sheet":"sep","index":13,"n_rows":53,"n_cols":8,"rows_kept":53,"cut":false,"hidden":false,"merged":[[0,0,0,7],[1,0,4,0]]}
["Kilometerregistratie september"]
[null,"Uw naam",{"$f":"jan!C2","v":0},"Kilometervergoeding",{"$f":"jan!E2","v":0.19}]
[null,null,null,"Voor periode","september"]
[null,"Beschrijving voertuig",{"$f":"jan!C4","v":"Fiat 500"},"Totaal aantal kilometers",{"$f":"G53","v":0}]
[null,"Kenteken",{"$f":"jan!C5","v":"00-AA-20"},"Totale vergoeding",{"$f":"H53","v":0}]
["Datum","Vertrekpunt","Bestemming","Beschrijving/opmerkingen","Beginstand teller","Eindstand teller","Aantal kilometers","Vergoeding"]
[null,null,null,null,0,null,{"$f":"IF(OR(ISBLANK(E7),ISBLANK(F7)),0,F7-E7)","v":0},{"$f":"G7*$E$2","v":0}]
[null,null,null,null,null,null,0,0]
[null,null,null,null,null,null,0,0]
[null,null,null,null,null,null,0,0]
[null,null,null,null,null,null,0,0]
[null,null,null,null,null,null,0,0]
[null,null,null,null,null,null,0,0]
[null,null,null,null,null,null,0,0]
[null,null,null,null,null,null,0,0]
[null,null,null,null,null,null,0,0]
[null,null,null,null,null,null,0,0]
[null,null,null,null,null,null,0,0]
[null,null,null,null,null,null,0,0]
[null,null,null,null,null,null,0,0]
[null,null,null,null,null,null,0,0]
[null,null,null,null,null,null,0,0]
[null,null,null,null,null,null,0,0]
[null,null,null,null,null,null,0,0]
[null,null,null,null,null,null,0,0]
[null,null,null,null,null,null,0,0]
[null,null,null,null,null,null,0,0]
[null,null,null,null,null,null,0,0]
[null,null,null,null,null,null,0,0]
[null,null,null,null,null,null,0,0]
[null,null,null,null,null,null,0,0]
[null,null,null,null,null,null,0,0]
[null,null,null,null,null,null,0,0]
[null,null,null,null,null,null,0,0]
[null,null,null,null,null,null,0,0]
[null,null,null,null,null,null,0,0]
[null,null,null,null,null,null,0,0]
[null,null,null,null,null,null,0,0]
[null,null,null,null,null,null,0,0]
[null,null,null,null,null,null,0,0]
[null,null,null,null,null,null,0,0]
[null,null,null,null,null,null,0,0]
[null,null,null,null,null,null,0,0]
[null,null,null,null,null,null,0,0]
[null,null,null,null,null,null,0,0]
[null,null,null,null,null,null,0,0]
[null,null,null,null,null,null,0,0]
[null,null,null,null,null,null,0,0]
[null,null,null,null,null,null,0,0]
[null,null,null,null,null,null,0,0]
[null,null,null,null,null,null,0,0]
[null,null,null,null,null,null,0,0]
[null,null,null,null,null,"Totalen",{"$f":"SUM(G7:G52)","v":0},{"$f":"G53*E2","v":0}]

{"sheet":"okt","index":14,"n_rows":53,"n_cols":8,"rows_kept":53,"cut":false,"hidden":false,"merged":[[0,0,0,7],[1,0,4,0]]}
["Kilometerregistratie oktober"]
[null,"Uw naam",{"$f":"jan!C2","v":0},"Kilometervergoeding",{"$f":"jan!E2","v":0.19}]
[null,null,null,"Voor periode","oktober"]
[null,"Beschrijving voertuig",{"$f":"jan!C4","v":"Fiat 500"},"Totaal aantal kilometers",{"$f":"G53","v":0}]
[null,"Kenteken",{"$f":"jan!C5","v":"00-AA-20"},"Totale vergoeding",{"$f":"H53","v":0}]
["Datum","Vertrekpunt","Bestemming","Beschrijving/opmerkingen","Beginstand teller","Eindstand teller","Aantal kilometers","Vergoeding"]
[null,null,null,null,0,null,{"$f":"IF(OR(ISBLANK(E7),ISBLANK(F7)),0,F7-E7)","v":0},{"$f":"G7*$E$2","v":0}]
[null,null,null,null,null,null,0,0]
[null,null,null,null,null,null,0,0]
[null,null,null,null,null,null,0,0]
[null,null,null,null,null,null,0,0]
[null,null,null,null,null,null,0,0]
[null,null,null,null,null,null,0,0]
[null,null,null,null,null,null,0,0]
[null,null,null,null,null,null,0,0]
[null,null,null,null,null,null,0,0]
[null,null,null,null,null,null,0,0]
[null,null,null,null,null,null,0,0]
[null,null,null,null,null,null,0,0]
[null,null,null,null,null,null,0,0]
[null,null,null,null,null,null,0,0]
[null,null,null,null,null,null,0,0]
[null,null,null,null,null,null,0,0]
[null,null,null,null,null,null,0,0]
[null,null,null,null,null,null,0,0]
[null,null,null,null,null,null,0,0]
[null,null,null,null,null,null,0,0]
[null,null,null,null,null,null,0,0]
[null,null,null,null,null,null,0,0]
[null,null,null,null,null,null,0,0]
[null,null,null,null,null,null,0,0]
[null,null,null,null,null,null,0,0]
[null,null,null,null,null,null,0,0]
[null,null,null,null,null,null,0,0]
[null,null,null,null,null,null,0,0]
[null,null,null,null,null,null,0,0]
[null,null,null,null,null,null,0,0]
[null,null,null,null,null,null,0,0]
[null,null,null,null,null,null,0,0]
[null,null,null,null,null,null,0,0]
[null,null,null,null,null,null,0,0]
[null,null,null,null,null,null,0,0]
[null,null,null,null,null,null,0,0]
[null,null,null,null,null,null,0,0]
[null,null,null,null,null,null,0,0]
[null,null,null,null,null,null,0,0]
[null,null,null,null,null,null,0,0]
[null,null,null,null,null,null,0,0]
[null,null,null,null,null,null,0,0]
[null,null,null,null,null,null,0,0]
[null,null,null,null,null,null,0,0]
[null,null,null,null,null,null,0,0]
[null,null,null,null,null,"Totalen",{"$f":"SUM(G7:G52)","v":0},{"$f":"G53*E2","v":0}]

{"sheet":"nov","index":15,"n_rows":53,"n_cols":8,"rows_kept":53,"cut":false,"hidden":false,"merged":[[0,0,0,7],[1,0,4,0]]}
["Kilometerregistratie november"]
[null,"Uw naam",{"$f":"jan!C2","v":0},"Kilometervergoeding",{"$f":"jan!E2","v":0.19}]
[null,null,null,"Voor periode","november"]
[null,"Beschrijving voertuig",{"$f":"jan!C4","v":"Fiat 500"},"Totaal aantal kilometers",{"$f":"G53","v":0}]
[null,"Kenteken",{"$f":"jan!C5","v":"00-AA-20"},"Totale vergoeding",{"$f":"H53","v":0}]
["Datum","Vertrekpunt","Bestemming","Beschrijving/opmerkingen","Beginstand teller","Eindstand teller","Aantal kilometers","Vergoeding"]
[null,null,null,null,0,null,{"$f":"IF(OR(ISBLANK(E7),ISBLANK(F7)),0,F7-E7)","v":0},{"$f":"G7*$E$2","v":0}]
[null,null,null,null,null,null,0,0]
[null,null,null,null,null,null,0,0]
[null,null,null,null,null,null,0,0]
[null,null,null,null,null,null,0,0]
[null,null,null,null,null,null,0,0]
[null,null,null,null,null,null,0,0]
[null,null,null,null,null,null,0,0]
[null,null,null,null,null,null,0,0]
[null,null,null,null,null,null,0,0]
[null,null,null,null,null,null,0,0]
[null,null,null,null,null,null,0,0]
[null,null,null,null,null,null,0,0]
[null,null,null,null,null,null,0,0]
[null,null,null,null,null,null,0,0]
[null,null,null,null,null,null,0,0]
[null,null,null,null,null,null,0,0]
[null,null,null,null,null,null,0,0]
[null,null,null,null,null,null,0,0]
[null,null,null,null,null,null,0,0]
[null,null,null,null,null,null,0,0]
[null,null,null,null,null,null,0,0]
[null,null,null,null,null,null,0,0]
[null,null,null,null,null,null,0,0]
[null,null,null,null,null,null,0,0]
[null,null,null,null,null,null,0,0]
[null,null,null,null,null,null,0,0]
[null,null,null,null,null,null,0,0]
[null,null,null,null,null,null,0,0]
[null,null,null,null,null,null,0,0]
[null,null,null,null,null,null,0,0]
[null,null,null,null,null,null,0,0]
[null,null,null,null,null,null,0,0]
[null,null,null,null,null,null,0,0]
[null,null,null,null,null,null,0,0]
[null,null,null,null,null,null,0,0]
[null,null,null,null,null,null,0,0]
[null,null,null,null,null,null,0,0]
[null,null,null,null,null,null,0,0]
[null,null,null,null,null,null,0,0]
[null,null,null,null,null,null,0,0]
[null,null,null,null,null,null,0,0]
[null,null,null,null,null,null,0,0]
[null,null,null,null,null,null,0,0]
[null,null,null,null,null,null,0,0]
[null,null,null,null,null,null,0,0]
[null,null,null,null,null,"Totalen",{"$f":"SUM(G7:G52)","v":0},{"$f":"G53*E2","v":0}]

{"sheet":"dec","index":16,"n_rows":53,"n_cols":8,"rows_kept":53,"cut":false,"hidden":false,"merged":[[0,0,0,7],[1,0,4,0]]}
["Kilometerregistratie december"]
[null,"Uw naam",{"$f":"jan!C2","v":0},"Kilometervergoeding",{"$f":"jan!E2","v":0.19}]
[null,null,null,"Voor periode","december"]
[null,"Beschrijving voertuig",{"$f":"jan!C4","v":"Fiat 500"},"Totaal aantal kilometers",{"$f":"G53","v":0}]
[null,"Kenteken",{"$f":"jan!C5","v":"00-AA-20"},"Totale vergoeding",{"$f":"H53","v":0}]
["Datum","Vertrekpunt","Bestemming","Beschrijving/opmerkingen","Beginstand teller","Eindstand teller","Aantal kilometers","Vergoeding"]
[null,null,null,null,0,null,{"$f":"IF(OR(ISBLANK(E7),ISBLANK(F7)),0,F7-E7)","v":0},{"$f":"G7*$E$2","v":0}]
[null,null,null,null,null,null,0,0]
[null,null,null,null,null,null,0,0]
[null,null,null,null,null,null,0,0]
[null,null,null,null,null,null,0,0]
[null,null,null,null,null,null,0,0]
[null,null,null,null,null,null,0,0]
[null,null,null,null,null,null,0,0]
[null,null,null,null,null,null,0,0]
[null,null,null,null,null,null,0,0]
[null,null,null,null,null,null,0,0]
[null,null,null,null,null,null,0,0]
[null,null,null,null,null,null,0,0]
[null,null,null,null,null,null,0,0]
[null,null,null,null,null,null,0,0]
[null,null,null,null,null,null,0,0]
[null,null,null,null,null,null,0,0]
[null,null,null,null,null,null,0,0]
[null,null,null,null,null,null,0,0]
[null,null,null,null,null,null,0,0]
[null,null,null,null,null,null,0,0]
[null,null,null,null,null,null,0,0]
[null,null,null,null,null,null,0,0]
[null,null,null,null,null,null,0,0]
[null,null,null,null,null,null,0,0]
[null,null,null,null,null,null,0,0]
[null,null,null,null,null,null,0,0]
[null,null,null,null,null,null,0,0]
[null,null,null,null,null,null,0,0]
[null,null,null,null,null,null,0,0]
[null,null,null,null,null,null,0,0]
[null,null,null,null,null,null,0,0]
[null,null,null,null,null,null,0,0]
[null,null,null,null,null,null,0,0]
[null,null,null,null,null,null,0,0]
[null,null,null,null,null,null,0,0]
[null,null,null,null,null,null,0,0]
[null,null,null,null,null,null,0,0]
[null,null,null,null,null,null,0,0]
[null,null,null,null,null,null,0,0]
[null,null,null,null,null,null,0,0]
[null,null,null,null,null,null,0,0]
[null,null,null,null,null,null,0,0]
[null,null,null,null,null,null,0,0]
[null,null,null,null,null,null,0,0]
[null,null,null,null,null,null,0,0]
[null,null,null,null,null,"Totalen",{"$f":"SUM(G7:G52)","v":0},{"$f":"G53*E2","v":0}]